Cogmind - Beta 12 @@@ ROGUE MODE // 2023.12.12 @ 14:02:00 Player: Nikolayag Result: Destroyed by B-75 Beast with Heavy Plasma Cannon Performance ------------- Evolutions (2) 1000 Regions Visited (10) 2000 Robots Destroyed (115) 575 Value Destroyed (4072) 4072 Prototype IDs (29) 580 Alien Tech Used (0) 0 Bonus (2101) 2101 TOTAL SCORE: 10328 Bonus ------- High Alert Combat Kills 366 Follower Combat Kills 35 Entered Garrisons 400 Used RIF Installer 1000 Aligned with FarCom 300 Cogmind --------- Core Integrity 0/550 Matter 179/300 Energy 100/100 System Corruption 26% Temperature Cool (12) Movement Core (400) Ox7 Location -8/Garrison Parts ------- > --- POWER (1) -------- (None) > --- PROPULSION (4) --- (None) > --- UTILITY (4) ------ Large Storage Unit > --- WEAPON (2) ------- Lance > --- INVENTORY (15) --- Micro Fission Core Combat Gravmag System Experimental Sensor Array Improved Weapon Cycler Hacking Suite Hacking Suite Relay Coupler [NC] (38) Relay Coupler [Grunt] (34) Light EM Pulse Cannon Advanced Plasma Cannon Heavy Assault Rifle Heavy Assault Rifle Mass Driver Mini Grenade Launcher Peak State ------------ > --- POWER ------------ Nuclear Core > --- PROPULSION ------- Armored Treads Armored Treads Advanced Treads VSS Leg > --- UTILITY ---------- Improved Heat Sink Large Storage Unit Hardened Medium Armor Plating Improved Focal Shield > --- WEAPON ----------- Advanced Plasma Cannon Great Maul > --- INVENTORY -------- Nuclear Core Micro Fission Core Experimental Sensor Array Improved Weapon Cycler Point Defense System Hacking Suite Hacking Suite Advanced Beam Cannon Heavy Assault Rifle Heavy Assault Rifle Gauss Cannon Gauss Cannon Mass Driver Mini Grenade Launcher Plasma Cutter [Rating: 43] Favorites ----------- Power Improved Ion Engine Engine Improved Ion Engine Power Core Nuclear Core Propulsion Improved Treads Treads Improved Treads Leg VSS Leg Wheel Compact Wheel Flight Unit Improved Flight Unit Utility Large Storage Unit Device Improved Heat Sink Storage Large Storage Unit Processor Transport Network Coupler Protection Light Armor Plating Weapon Heavy EM Pulse Gun Energy Gun Heavy EM Pulse Gun Energy Cannon Light EM Pulse Cannon Ballistic Gun Heavy Assault Rifle Ballistic Cannon Gauss Cannon Launcher Mini Grenade Launcher Special Weapon Plasma Cutter Impact Weapon Great Maul Piercing Weapon Lance Build | -11 -10 -10 -9 -9 -9 -8 -8 -8 -8 -8 ------- Run | Jun Mat Min Mat Min Exi Min Mat Gar Mat Gar Slots Evolved 4 | . . . 2 . . . 2 . . . Power . | . . . . . . . . . . . Propulsion 2 | . . . 1 . . . 1 . . . Utility 2 | . . . 1 . . . 1 . . . Weapon . | . . . . . . . . . . . Parts Attached 192 | 6 14 8 36 2 8 18 48 26 9 17 Power 8 | 1 1 . 2 . . . 2 2 . . Engine 4 | 1 1 . 2 . . . . . . . Core 4 | . . . . . . . 2 2 . . Reactor . | . . . . . . . . . . . Propulsion 38 | 2 3 . 12 . . 3 10 3 2 3 Treads 29 | 1 2 . 7 . . 2 10 2 2 3 Leg 1 | . . . . . . . . 1 . . Wheel 7 | 1 1 . 4 . . 1 . . . . Hover . | . . . . . . . . . . . Flight 1 | . . . 1 . . . . . . . Utility 36 | 1 2 . 6 2 . 9 7 3 2 4 Device 15 | . 1 . 2 2 . 3 2 2 1 2 Storage 4 | 1 1 . 1 . . . . . 1 . Processor 1 | . . . . . . . 1 . . . Hackware . | . . . . . . . . . . . Protection 16 | . . . 3 . . 6 4 1 . 2 Artifact . | . . . . . . . . . . . Weapon 110 | 2 8 8 16 . 8 6 29 18 5 10 Energy Gun 31 | 1 4 3 10 . 1 . 11 1 . . Energy Cannon 13 | . . . . . 1 . 4 3 3 2 Ballistic Gun 13 | 1 1 . . . 1 2 2 3 1 2 Ballistic Cannon 15 | . 1 1 2 . 2 1 3 3 . 2 Launcher 19 | . 2 4 . . . 2 5 4 1 1 Special Weapon 7 | . . . 4 . 2 . 1 . . . Impact Weapon 11 | . . . . . 1 1 3 4 . 2 Slashing Weapon . | . . . . . . . . . . . Piercing Weapon 1 | . . . . . . . . . . 1 Special Melee Weapon . | . . . . . . . . . . . Unidentified Prototypes 7 | . . . 2 1 1 . 3 . . . Corrupted Parts 6 | . . . 1 . . . 1 . 1 3 System Corruption 25 | . . . 3 . . . 1 . 4 17 Parts Lost 34 | . . . 4 . . 5 4 10 1 10 Power 3 | . . . . . . . . 2 . 1 Propulsion 12 | . . . . . . 2 1 4 . 5 Utility 14 | . . . 2 . . 3 2 3 1 3 Weapon 5 | . . . 2 . . . 1 1 . 1 Highest Loss Streak 9 | . . . 2 . . 2 2 4 1 9 To Critical Strikes . | . . . . . . . . . . . Average Slot Usage (%) 95 | . 97 100 94 100 99 92 91 94 96 93 Engine 7 | . 14 14 11 11 11 11 . . . . Core 3 | . . . . . . . 8 8 9 8 Treads 27 | . 20 28 23 22 22 26 35 30 31 35 Wheel 4 | . 7 . 9 11 11 6 . . . . Device 11 | . 12 14 10 11 11 7 8 13 16 11 Storage 10 | . 14 14 11 11 11 11 9 9 9 9 Protection 8 | . . . 6 11 11 12 10 9 9 11 Energy Gun 8 | . 18 12 17 22 1 . 8 . . . Energy Cannon 1 | . . . . . . . 3 4 7 1 Ballistic Gun 3 | . 4 14 . . . 12 1 1 . 5 Ballistic Cannon 2 | . 3 . . . 1 2 2 6 . 4 Special Weapon 1 | . . . 2 . 10 . . . . . Impact Weapon 2 | . . . . . 8 3 . 4 9 4 Naked Turns . | . . . . . . . . . . . Heaviest Build 51 | 11 22 20 37 37 37 38 50 51 47 50 Greatest Support 89 | 10 46 46 69 40 40 66 89 83 84 84 Greatest Overweight (x) 2 | 1 1 . 2 2 2 2 2 1 1 . Average Overweight (x) . | . . . 1 1 . 1 . . . . Largest Inventory Capacity 15 | 8 10 10 15 15 15 15 15 15 15 15 Average Capacity 13 | 7 9 10 14 15 15 15 15 15 15 15 Most Carried 15 | 5 10 10 15 15 15 15 15 15 15 15 Average Carried 12 | 3 8 10 12 14 15 12 14 14 14 14 Final Capacity 15 | 8 10 10 15 15 15 15 15 15 15 15 Final Carried 15 | 5 10 10 15 15 15 13 15 15 15 14 Class Distribution -------------------- 50% | Scavenger-Mutant 49% | Mutant Dominant Class ---------------- Mutant | -10/Materials Mutant | -10/Mines Mutant | -9/Materials Scavenger-Mutant | -9/Mines Scavenger-Mutant | -9/Exiles Mutant | -8/Mines Mutant | -8/Materials Scavenger-Mutant | -8/Garrison Scavenger-Mutant | -8/Materials Scavenger-Mutant | -8/Garrison Resources | -11 -10 -10 -9 -9 -9 -8 -8 -8 -8 -8 ----------- Run | Jun Mat Min Mat Min Exi Min Mat Gar Mat Gar Matter Collected 3141 | 239 193 194 291 96 . 431 712 606 150 229 Remotely . | . . . . . . . . . . . Salvage Created 3964 | 84 519 84 585 253 . 357 947 577 326 232 Parts 222 | 1 28 4 38 10 . 18 61 41 12 9 Haulers Intercepted 7 | . 2 . 2 . . . 1 . 2 . Recyclers Shooed 3 | . . . 2 1 . . . . . . Parts Field Recycled . | . . . . . . . . . . . Retrieved Matter . | . . . . . . . . . . . Parts Self-Destructed . | . . . . . . . . . . . Prevented . | . . . . . . . . . . . Kills | -11 -10 -10 -9 -9 -9 -8 -8 -8 -8 -8 ------- Run | Jun Mat Min Mat Min Exi Min Mat Gar Mat Gar Combat Hostiles Destroyed 99 | . 9 10 10 5 . 5 23 25 6 6 Melee 1 | . . . . . . . . 1 . . Guns 30 | . 8 3 8 4 . 1 5 . . 1 Cannons 19 | . . . . . . . 6 12 . 1 AOE 39 | . 1 7 1 1 . 4 10 10 3 2 Classes Destroyed 14 | 1 3 1 4 1 . 1 1 2 . . Worker 4 | . 1 . . . . 3 . . . . Builder 5 | . . . 1 . . . 4 . . . Tunneler 1 | . . . . . . 1 . . . . Hauler 7 | . 2 . 2 . . . 1 . 2 . Recycler 3 | 1 . . . . . 2 . . . . Operator 3 | . . . 1 . . . 1 . 1 . Watcher 1 | . . . . . . . . 1 . . Swarmer 17 | . . . 2 . . . 4 11 . . Grunt 49 | . 9 2 4 4 . 5 11 7 4 3 Brawler 2 | . . . . 1 . . . . . 1 Duelist 1 | . . . . . . . . 1 . . Sentry 16 | . . . 4 . . . 6 2 2 2 Specialist 6 | . . . . . . . 2 4 . . Assembled 8 | . . 8 . . . . . . . . Best Kill Streak 8 | 1 3 8 3 3 . 6 5 6 5 3 Combat Bots Only 8 | . 3 8 3 3 . 3 3 6 4 3 Max Kills in Single Turn 3 | 1 2 2 2 1 . 1 3 3 2 1 Gunslinging 1 | . . . 1 . . . . . . . Exploded 2 | . 1 2 1 1 . 1 2 2 1 1 Melee 1 | . . . . . . . . 1 . . Uniques/NPCs Destroyed . | . . . . . . . . . . . Combat | -11 -10 -10 -9 -9 -9 -8 -8 -8 -8 -8 -------- Run | Jun Mat Min Mat Min Exi Min Mat Gar Mat Gar Damage Taken 7107 | . 220 397 590 161 . 852 1367 1306 251 1963 Core 893 | . 25 107 73 11 . 114 72 112 14 365 Absorbed by Shields . | . . . . . . . . . . . Redirected to Shielding 111 | . . . . . . . 30 81 . . Regen/Repaired (Parts) 271 | . 34 . 237 . . . . . . . Core Remaining (%) 65 | 100 . 47 . . . 50 . . . . Volleys Fired 291 | 12 31 16 38 12 3 25 69 48 6 31 Largest 2 | 1 2 2 2 2 1 2 2 2 1 2 Hottest 101 | 50 90 65 90 90 35 46 101 98 56 98 Shots Fired 452 | 12 60 22 64 24 3 33 101 89 7 37 Gun 250 | 12 57 10 55 24 . 16 55 13 2 6 Cannon 152 | . 1 2 2 . 3 10 32 71 2 29 Launcher 42 | . 2 10 . . . 7 13 5 3 2 Special 8 | . . . 7 . . . 1 . . . Kinetic 155 | . 9 8 2 . 3 26 21 74 2 10 Thermal 50 | 12 7 . 7 . . . 1 7 . 16 Explosive 42 | . 2 10 . . . 7 13 5 3 2 Electromagnetic 205 | . 42 4 55 24 . . 66 3 2 9 Robot Hit Streak 11 | 3 8 4 10 6 . 3 11 11 5 11 Robot Miss Streak 5 | 2 3 5 2 2 . 4 2 2 2 3 Penetration Max 1 | . . . . . . . 1 1 . . Secondary Targets 9 | . 2 2 2 3 . . . . . . Max Gunslinging Chain 1 | . 1 1 1 1 . . . . . . Shots Hit Robots 329 | 7 39 7 52 21 . 14 72 61 12 44 Core Hits 205 | 2 17 20 21 12 . 25 52 37 9 10 Critical Kills 1 | . . . . . . . . 1 . . Critical Parts Destroyed 5 | . . . . . . . . 2 2 1 Critical Strikes 16 | . 1 . . . . . 2 8 3 2 Meltdown 1 | . . . . . . . . 1 . . Blast 7 | . . . . . . . 1 5 . 1 Corrupt 2 | . 1 . . . . . 1 . . . Smash 6 | . . . . . . . . 2 3 1 Melee Attacks 89 | . . . . . . 15 2 25 10 37 Impact 66 | . . . . . . 15 2 25 10 14 Slashing . | . . . . . . . . . . . Piercing 23 | . . . . . . . . . . 23 Sneak Attacks 2 | . . . . . . . . . 2 . Combat Hostiles . | . . . . . . . . . . . Follow-up Attacks . | . . . . . . . . . . . Damage Inflicted 11218 | 99 722 854 985 374 . 805 2620 2334 944 1481 Guns 2808 | 99 596 37 715 324 . 164 672 122 . 79 Cannons 2261 | . . 15 17 . . 47 614 1333 45 190 Explosions 4532 | . 126 802 175 50 . 570 1326 808 428 247 Melee 1492 | . . . . . . . . 56 471 965 Ramming 60 | . . . 13 . . 24 8 15 . . Kinetic 2137 | . 51 40 17 . . 211 354 1360 . 104 Thermal 949 | 99 127 . 240 50 . . 268 61 43 61 Explosive 3871 | . 62 802 . . . 570 1058 808 385 186 Electromagnetic 2709 | . 482 12 715 324 . . 932 34 45 165 Impact 815 | . . . . . . . . 56 471 288 Slashing . | . . . . . . . . . . . Piercing 677 | . . . . . . . . . . 677 Highest Corruption 26 | . . . 5 5 5 5 5 5 9 26 Average Corruption 6 | . . . 2 5 5 5 4 5 8 22 Corruption Purged . | . . . . . . . . . . . Corruption Blocked . | . . . . . . . . . . . Effects 149 | . . . 10 13 19 15 15 32 16 29 Message Errors 33 | . . . 1 4 7 4 3 5 4 5 Matter Fused 33 | . . . 3 1 4 4 3 10 2 6 Heat Flow Errors 30 | . . . 3 3 2 3 2 6 4 7 Energy Discharges 17 | . . . . 1 3 3 . 5 2 3 Parts Rejected 3 | . . . . . . . 2 . . 1 Data Loss (minor) 17 | . . . 2 2 3 1 2 2 2 3 Data Loss (major) 6 | . . . . . . . 2 1 1 2 Misfires 4 | . . . . 1 . . . 2 1 . Alerts 3 | . . . 1 . . . . . . 2 Weapon Failures 3 | . . . . 1 . . 1 1 . . Overload Shots . | . . . . . . . . . . . Overflow Damage 382 | . . 17 1 . . 3 86 92 148 35 Projectiles 42 | . . . 1 . . . 21 20 . . Explosions 101 | . . 17 . . . 3 65 16 . . Melee 239 | . . . . . . . . 56 148 35 Knockbacks 22 | . . . 1 . . 2 2 14 3 . Impact 5 | . . . 1 . . 1 . . 3 . Kinetic 15 | . . . . . . 1 2 12 . . Secondary 2 | . . . . . . . . 2 . . Self-Inflicted Damage 286 | . 38 . 51 . . . 24 98 . 75 Shots 11 | . 1 . 2 . . . 1 4 . 3 Rammed 9 | . . . 2 . . 3 2 2 . . Targets Rammed 12 | . . . 3 . . 4 2 3 . . Kicked . | . . . . . . . . . . . Crushed 3 | . . . 1 . . 1 . 1 . . Highest Temperature 260 | 50 198 6 232 217 120 258 250 259 260 252 Average Temperature 62 | 20 56 3 59 47 58 110 43 59 90 97 Received Heat Transfer 2166 | . 126 36 165 78 . 234 612 318 144 453 Siege Activations . | . . . . . . . . . . . Robots Corrupted 5 | . . . 1 . . . 2 . . 2 Combat Hostiles 5 | . . . 1 . . . 2 . . 2 Parts Fried 20 | . 1 . 6 1 . . 7 2 2 1 Impact Corruptions 10 | . . . . . . . . 2 6 2 Robots Melted 1 | . . . . . . . . 1 . . Combat Hostiles 1 | . . . . . . . . 1 . . Parts Melted . | . . . . . . . . . . . Heat Transferred 1614 | 296 285 . 472 50 . . 350 111 50 . Parts Sabotaged . | . . . . . . . . . . . Parts Stolen . | . . . . . . . . . . . Parts Stripped . | . . . . . . . . . . . Power Chain Reactions 11 | . 1 . 4 1 . . 3 . 1 1 Missiles Intercepted . | . . . . . . . . . . . Alert | -11 -10 -10 -9 -9 -9 -8 -8 -8 -8 -8 ------- Run | Jun Mat Min Mat Min Exi Min Mat Gar Mat Gar Peak Influence 1031 | 5 170 172 289 193 . 95 477 1031 659 538 Initial 502 | . 3 28 66 39 . . 37 286 502 319 Average 274 | 1 76 163 153 102 . 41 245 693 537 474 Maximum Alert Level 3 | . . . 1 . . . 2 3 2 2 Low Security (%) 57 | 100 100 100 78 100 . 100 39 . . . Level 1 11 | . . . 21 . . . 31 11 . 30 Level 2 22 | . . . . . . . 28 33 100 69 Level 3 8 | . . . . . . . . 55 . . Level 4 . | . . . . . . . . . . . Level 5 . | . . . . . . . . . . . High Security . | . . . . . . . . . . . Max Security . | . . . . . . . . . . . Squads Dispatched 16 | . 1 . 1 . . 1 10 . 3 . Investigation 4 | . 1 . . . . . 2 . 1 . Extermination . | . . . . . . . . . . . Reinforcement 6 | . . . 1 . . 1 3 . 1 . Assault . | . . . . . . . . . . . Garrison 6 | . . . . . . . 5 . 1 . Intercept . | . . . . . . . . . . . Searches Triggered . | . . . . . . . . . . . Construction Impeded 2 | . . . . . . 1 1 . . . Haulers Reinforced . | . . . . . . . . . . . Active Scanning Responses . | . . . . . . . . . . . Cargo Convoy Interrupts . | . . . . . . . . . . . Stealth | -11 -10 -10 -9 -9 -9 -8 -8 -8 -8 -8 --------- Run | Jun Mat Min Mat Min Exi Min Mat Gar Mat Gar Distress Signals 7 | . . . 2 . . . 1 2 2 . Communications Jammed . | . . . . . . . . . . . Distress Signals . | . . . . . . . . . . . Times Spotted 156 | . 24 10 25 5 . 8 33 36 7 8 Peak Tracking Total 9 | . 5 4 5 3 9 3 4 8 4 4 Tactical Retreats 8 | . . . 1 . . 1 2 4 . . Traps | -11 -10 -10 -9 -9 -9 -8 -8 -8 -8 -8 ------- Run | Jun Mat Min Mat Min Exi Min Mat Gar Mat Gar Traps Triggered 10 | . 1 . 3 . . . . 4 . 2 Indirectly . | . . . . . . . . . . . Trap Hack Attempts . | . . . . . . . . . . . Triggered . | . . . . . . . . . . . Disarmed . | . . . . . . . . . . . Reprogrammed . | . . . . . . . . . . . Reused . | . . . . . . . . . . . Traps Extracted . | . . . . . . . . . . . Installed . | . . . . . . . . . . . Triggered . | . . . . . . . . . . . Machines | -11 -10 -10 -9 -9 -9 -8 -8 -8 -8 -8 ---------- Run | Jun Mat Min Mat Min Exi Min Mat Gar Mat Gar Machines Disabled 10 | . 1 . . 2 2 . 1 2 . 2 Max in Single Turn 1 | . 1 . . 1 1 . 1 1 . 1 Garrison Relay 2 | . . . . . . . . 1 . 1 Machines Repaired . | . . . . . . . . . . . Machines Sabotaged . | . . . . . . . . . . . Overloaded Fab Kills . | . . . . . . . . . . . Hacking | -11 -10 -10 -9 -9 -9 -8 -8 -8 -8 -8 --------- Run | Jun Mat Min Mat Min Exi Min Mat Gar Mat Gar Machines Accessed 9 | . 3 . 1 . 1 . 3 . 1 . Terminals 4 | . 2 . . . . . 2 . . . Fabricators . | . . . . . . . . . . . Repair Stations 2 | . 1 . 1 . . . . . . . Recycling Units . | . . . . . . . . . . . Scanalyzers . | . . . . . . . . . . . Garrison Access 2 | . . . . . . . 1 . 1 . Total Hacks 30 | . 10 . 8 . 1 . 8 . 3 . Successful 15 | . 3 . 4 . 1 . 5 . 2 . Failed 15 | . 7 . 4 . . . 3 . 1 . Catastrophic 1 | . . . . . . . 1 . . . Database Lockouts . | . . . . . . . . . . . Manual 17 | . 7 . . . 1 . 7 . 2 . Terminals 11 | . 7 . . . . . 4 . . . Fabricators . | . . . . . . . . . . . Repair Stations 11 | . 3 . 8 . . . . . . . Recycling Units . | . . . . . . . . . . . Scanalyzers . | . . . . . . . . . . . Garrison Access 7 | . . . . . . . 4 . 3 . Terminal Hacks 2 | . . . . . 1 . 1 . . . Branch Access Points 1 | . . . . . . . 1 . . . EX-Prototype ID Bank 1 | . . . . . 1 . . . . . Fabricator Hacks . | . . . . . . . . . . . Repair Station Hacks 6 | . 2 . 4 . . . . . . . Scan Component 3 | . 1 . 2 . . . . . . . Repair 3 | . 1 . 2 . . . . . . . Recycling Unit Hacks . | . . . . . . . . . . . Scanalyzer . | . . . . . . . . . . . Garrison Access Hacks 2 | . . . . . . . 1 . 1 . Unlock Access 2 | . . . . . . . 1 . 1 . Unauthorized Hacks 5 | . 1 . . . . . 3 . 1 . Terminals 3 | . 1 . . . . . 2 . . . Botnet 3 | . 1 . . . . . 2 . . . Fabricators . | . . . . . . . . . . . Repair Stations . | . . . . . . . . . . . Recycling Units . | . . . . . . . . . . . Scanalyzers . | . . . . . . . . . . . Garrison Access 2 | . . . . . . . 1 . 1 . Reprogram 2 | . . . . . . . 1 . 1 . Data Cores Recovered . | . . . . . . . . . . . Used . | . . . . . . . . . . . Hacking Detections 7 | . 2 . 1 . . . 3 . 1 . Full Trace Events 2 | . . . 1 . . . 1 . . . Feedback Events . | . . . . . . . . . . . Feedback Blocked . | . . . . . . . . . . . Robot Schematics Acquired . | . . . . . . . . . . . Robots Built . | . . . . . . . . . . . Authchips . | . . . . . . . . . . . Time . | . . . . . . . . . . . Total Robot Build Rating . | . . . . . . . . . . . Part Schematics Acquired . | . . . . . . . . . . . Parts Built . | . . . . . . . . . . . Authchips . | . . . . . . . . . . . Time . | . . . . . . . . . . . Total Part Build Rating . | . . . . . . . . . . . Parts Repaired 3 | . 1 . 2 . . . . . . . Time 80 | . 16 . 64 . . . . . . . Parts Recycled . | . . . . . . . . . . . Recycled Matter . | . . . . . . . . . . . Retrieved Matter . | . . . . . . . . . . . Retrieved Components . | . . . . . . . . . . . Parts Scanalyzed . | . . . . . . . . . . . Part Schematics Acquired . | . . . . . . . . . . . Parts Damaged . | . . . . . . . . . . . Bothacking | -11 -10 -10 -9 -9 -9 -8 -8 -8 -8 -8 ------------ Run | Jun Mat Min Mat Min Exi Min Mat Gar Mat Gar Used RIF Installer 2 | . . . . . . . . 1 . 1 Coupler Efficiency 1 | . . . . . . . . . . 1 Robots Hacked . | . . . . . . . . . . . Non-combat . | . . . . . . . . . . . Combat . | . . . . . . . . . . . Robot Hacks Applied . | . . . . . . . . . . . Relay Couplers Released 8 | . . . . . . . . 3 . 5 Machine Destruction 8 | . . . . . . . . 3 . 5 Fabnet Peak Effective % . | . . . . . . . . . . . Robots Rewired . | . . . . . . . . . . . Allies Hacked . | . . . . . . . . . . . Hacks Repelled . | . . . . . . . . . . . Allies | -11 -10 -10 -9 -9 -9 -8 -8 -8 -8 -8 -------- Run | Jun Mat Min Mat Min Exi Min Mat Gar Mat Gar Total Allies 3 | . . . . . . . 2 . 1 . Largest Group 2 | . . . . . . . 2 . 1 1 Highest-Rated Group 15 | . . . . . . . 10 . 15 15 Highest-Rated Ally 15 | . . . . . . . 5 . 15 15 Total Orders 1 | . . . . . . . . . . 1 EXPLORE 1 | . . . . . . . . . . 1 Ally Attacks 9 | . . . . . . . 5 . . 4 Total Damage 91 | . . . . . . . 31 . . 60 Kills 1 | . . . . . . . . . . 1 Allies Corrupted . | . . . . . . . . . . . Allies Melted . | . . . . . . . . . . . Intel | -11 -10 -10 -9 -9 -9 -8 -8 -8 -8 -8 ------- Run | Jun Mat Min Mat Min Exi Min Mat Gar Mat Gar Robot Analysis Total . | . . . . . . . . . . . Derelict Logs Recovered 2 | . . 1 . 1 . . . . . . Drone Launches 5 | . . . . . . . . . . 5 Drone Recoveries 3 | . . . . . . . . . . 3 Exploration | -11 -10 -10 -9 -9 -9 -8 -8 -8 -8 -8 ------------- Run | Jun Mat Min Mat Min Exi Min Mat Gar Mat Gar Turns Passed 7605 | 118 1112 358 929 422 907 768 888 1049 473 581 Spaces Moved 3784 | 89 664 188 489 269 554 286 356 464 241 184 Core 4 | 4 . . . . . . . . . . Treads 2828 | . 498 188 123 106 541 142 341 464 241 184 Legs . | . . . . . . . . . . . Wheels 952 | 85 166 . 366 163 13 144 15 . . . Hover . | . . . . . . . . . . . Flight . | . . . . . . . . . . . Fastest Speed 50 | 50 95 160 115 130 130 130 130 161 155 155 Average Speed 151 | 90 145 160 132 141 159 144 162 166 164 157 Slowest Speed 237 | 100 160 160 160 160 160 160 166 237 237 158 Overloaded Moves . | . . . . . . . . . . . Propulsion Burnouts . | . . . . . . . . . . . Robots Hopped . | . . . . . . . . . . . Cave-ins Triggered 1 | . . . . . . 1 . . . . Exploration Rate (%) 46 | 5 87 55 49 61 72 49 26 50 26 28 Regions Visited 10 Branch Regions 4 Pre-discovered Areas . | . . . . . . . . . . . Known Exits Taken 3 | . . . 1 . . . 1 . 1 . Unknown Exits Taken 6 | 1 1 1 . 1 1 1 . . . . Scrap Searched 3 | . . . . 2 . 1 . . . . Spaces Dug 71 | . 22 13 . . . 9 12 12 . 3 Terrain Destroyed 343 | . 22 85 7 4 . 54 68 32 34 37 Melee 17 | . . . . . . 9 2 4 . 2 Projectile 19 | . . . . . . . 4 1 . 14 AOE 307 | . 22 85 7 4 . 45 62 27 34 21 Terrain Rammed . | . . . . . . . . . . . Walls Destroyed . | . . . . . . . . . . . Machines Disabled . | . . . . . . . . . . . Actions | -11 -10 -10 -9 -9 -9 -8 -8 -8 -8 -8 --------- Run | Jun Mat Min Mat Min Exi Min Mat Gar Mat Gar Total 5017 | 111 750 221 693 288 573 572 551 595 289 374 Wait 508 | . 24 10 90 1 3 222 34 14 19 91 Move 3774 | 88 663 187 488 268 553 285 355 463 240 184 Hop . | . . . . . . . . . . . Pick Up 64 | 5 9 . 20 1 2 1 14 8 1 3 Fast Attach 62 | 6 3 . 11 2 2 2 17 5 5 9 Attach 23 | . . . 6 . . 5 7 4 . 1 Detach 12 | . 2 . 3 1 . 2 4 . . . Swap 107 | . 11 8 19 . 6 11 24 17 4 7 Drop 71 | . 7 . 15 3 4 . 23 4 4 11 Fire 291 | 12 31 16 38 12 3 25 69 48 6 31 Melee 89 | . . . . . . 15 2 25 10 37 Ram . | . . . . . . . . . . . Kick . | . . . . . . . . . . . Crush 12 | . . . 3 . . 4 2 3 . . Escape Stasis 4 | . . . . . . . . 4 . . Rewire . | . . . . . . . . . . . Trap . | . . . . . . . . . . . Miscellaneous . | . . . . . . . . . . . Route ------- -11/Junkyard -10/Materials (discovered 4 exits: *Mat x3 / [*Min]) -10/Mines (discovered 2 exits: *Mat x2) -9/Materials (discovered 3 exits: *Mat / *Min x2) -9/Mines (discovered 2 exits: *Mat / *Exi) -9/Exiles (discovered 2 exits: [*Min x2]) -8/Mines -8/Materials -8/Garrison -8/Materials -8/Garrison History --------- Turn | Location | Event 4 | -11/Junkyard | Discovered new exit (range 16) 119 | -11/Junkyard | Entered Materials 216 | -10/Materials | Discovered new exit (range 5) 300 | -10/Materials | Build established: Mutant 413 | -10/Materials | Discovered new exit (range 16) 590 | -10/Materials | Discovered new exit (range 10) 833 | -10/Materials | Discovered new exit (range 8) 1090 | -10/Materials | Repaired Hvy. EM Pulse Gun 1231 | -10/Materials | Entered Mines 1232 | -10/Mines | Assembled infested the area 1288 | -10/Mines | Destroyed 8 combat bots 1296 | -10/Mines | Core integrity fell below 50% 1339 | -10/Mines | Learned 2 Materials zone layouts 1407 | -10/Mines | Received a Rocket Launcher from a helpful Derelict 1447 | -10/Mines | Discovered new exit (range 7) 1476 | -10/Mines | Discovered new exit (range 12) 1589 | -10/Mines | Entered Materials 1589 | -9/Materials | Evolved 2 slots: Propulsion x1, Utility x1 1590 | -9/Materials | Identified exit to Mines 2344 | -9/Materials | Discovered new exit (range 5) 2370 | -9/Materials | Repaired Imp. Treads? 2426 | -9/Materials | Repaired Imp. Treads 2518 | -9/Materials | Entered Mines 2587 | -9/Mines | Found a damaged Exp. Sensor Array with a note attached 2591 | -9/Mines | Found Prototype Device 2591 | -9/Mines | Identified Exp. Sensor Array 2672 | -9/Mines | Build established: Scavenger-Mutant 2828 | -9/Mines | Learned Materials terminal intel 2851 | -9/Mines | Discovered new exit (range 6) 2934 | -9/Mines | Deemed a non-threat by the Exiles lab entrance 2934 | -9/Mines | Discovered new exit (range 5) 2940 | -9/Mines | Entered Exiles 2964 | -9/Exiles | Discovered new exit (range 15) 2987 | -9/Exiles | Met 8R-AWN 3011 | -9/Exiles | Met EX-HEX 3052 | -9/Exiles | Met EX-BIN 3089 | -9/Exiles | Aligned with FarCom system 3091 | -9/Exiles | Given EX-Vault access code 3161 | -9/Exiles | Opened EX-Vault 3173 | -9/Exiles | Found Prototype Energy Cannon 3173 | -9/Exiles | Identified Latent Energy Streamer 3218 | -9/Exiles | Warned to stay clear of 0b10 Research branches 3263 | -9/Exiles | Met EX-DEC 3487 | -9/Exiles | Found Modified TNC 3653 | -9/Exiles | Discovered new exit (range 12) 3822 | -9/Exiles | Attacked by the Exiles 3847 | -9/Exiles | Entered Mines 3848 | -8/Mines | 7V-RTL came to Exiles' defense 4200 | -8/Mines | Build established: Mutant 4205 | -8/Mines | Crushed by falling debris 4301 | -8/Mines | Discovered new exit (range 11) 4615 | -8/Mines | Entered Materials 4615 | -8/Materials | Evolved 2 slots: Propulsion x1, Utility x1 4616 | -8/Materials | Loaded intel: 12 terminal locations 5043 | -8/Materials | Garrison activated, responded to threat 5327 | -8/Materials | Identified exit to Garrison 5369 | -8/Materials | Garrison activated, responded to threat 5503 | -8/Materials | Entered Garrison 5581 | -8/Garrison | Build established: Scavenger-Mutant 5861 | -8/Garrison | Lost 3 parts (1p1n1w) 6006 | -8/Garrison | Lost 4 parts (1p1n2u) 6144 | -8/Garrison | Triggered checkpoint 6300 | -8/Garrison | Triggered checkpoint 6360 | -8/Garrison | Installed Relay Interface Framework 6374 | -8/Garrison | Garrison Relay disabled 6414 | -8/Garrison | Discovered new exit (range 10) 6552 | -8/Garrison | Entered Materials 7014 | -8/Materials | Identified exit to Garrison 7025 | -8/Materials | Entered Garrison 7025 | -8/Garrison | Accompanied by 1 ally 7112 | -8/Garrison | System corruption reached 10% 7145 | -8/Garrison | Expanded RIF knowledge: Coupler Efficiency 7202 | -8/Garrison | Garrison Relay disabled 7245 | -8/Garrison | Core integrity fell below 50% 7483 | -8/Garrison | Spotted B-75 Beast 7565 | -8/Garrison | Core integrity fell below 20% 7606 | -8/Garrison | Destroyed by B-75 Beast with Heavy Plasma Cannon Last Messages --------------- 07554_ System corrupted: Heat flow error (+189). 07557_ Advanced Drone retrieved by Adv. Drone Bay. 07560_ Advanced Drone released from Adv. Drone Bay. 07560_ Arm. Treads destroyed. 07560_ Gauss Cannon destroyed. 07560_ Lgt. Treads destroyed. 07570_ Advanced Drone knocked back. 07571_ System corrupted: Heat flow error (+111). 07572_ Advanced Drone retrieved by Adv. Drone Bay. 07576_ Advanced Drone released from Adv. Drone Bay. 07579_ Adv. Drone Bay destroyed. 07579_ >> Lost connection to Advanced Drone. 07588_ The unstable cave ceiling collapses. 07588_ 5 Matter crushed. 07590_ Nuclear Core destroyed. 07590_ Cooling System destroyed. 07598_ System corrupted: Matter fused (-6). 07601_ Lgt. Treads destroyed. 07601_ Adv. Treads destroyed. 07601_ Lgt. Treads destroyed. Map ----- +----------------------------------------------------+ | ?????????????????????????????????????????????????? | | ?????????????????????????????????????????????????? | | ?????????????????????????????????????????????????? | | ?????????????????????????????????????????????????? | | ?????????????????????????????????????????????????? | | ?????????????????????????????????????????????????? | | ?????????????????????????????????????????????????? | | ?????????????????????????????????????????????????? | | ?????????????????????????????????????????????????? | | ?????????????????????????????????????????????????? | | ?????????????????????????????????????????????????? | | ?????????????????????????????????????????????????? | | ?????????????????????????????????????????????????? | | ?????????????????????????????????????????????????? | | ?????????????????????????????????????????????????? | | ?????????????????????????????????????????????????? | | ?????????????????????????????????????????????????? | | ?????????????????????????????????????????????????? | | ?????????????????????????????????????????????????? | | ????????????????????????############?????????????? | | ????????????????????????#""""""""""#?????????????? | | ???????????????????????##"]*=[*!"""#?????????????? | | ???????????????????????# ""#?????????????? | | ????????????????????############%! #?????????????? | | ????????????????????# BB % * #?????????????? | | ????????????????????# BB@%% ] #?????????????? | | ????????????????????#####%######/ "#?????????????? | | ???????????????????????# ] !! ""#?????????????? | | ? ????????????????????##"n*!]] """#?????????????? | | ?????????????????????#""% """"""#?????????????? | | ????????????????????############?????????????? | | # ?????????????????????###????????????????????? | | ? ##???????????????????# #????????????????????? | | ?? ???????????????????# #????????????????????? | | ??? ??????????????????# #????????????????????? | | ???? ??????????????????# #????????????????????? | | ????? ?????????????????# #????????????????????? | | # ????# ?????????????????# #????????????????????? | | # ## ????????????????# #????????????????????? | | #####???????????# ##???????????????????? | | " #???????????# #???????????????????? | | ### #???????????# #???????????????????? | | #""""## ??# #############""#???????????????????? | | ??????# ???# ##???????????????????? | | ??????# ???# ############# #????????????????????? | | ??????# ????# #???????????# #????????????????????? | | ??????# ????# #???????????# #????????????????????? | | ??????#?????# #????????#### ###??????????????????? | | ????????????############ # # ###############????? | | ???????????? #????? | +----------------------------------------------------+ Best States ------------- Heat Dissipation 59 Energy Generation 14 Energy Capacity 265 Matter Stores 300 Matter Capacity 300 Sight Range 16 Robot Scan Range 20 Terrain Scan Density 10 Armor Coverage 600 Resistance: KI 25 Weapon Shielding 66 Evasion (%) 44 Recoil Reduction 4 Item Schematics ----------------- None Robot Schematics ------------------ None Fabricated ------------ Nothing Alien Tech Used ----------------- None Achievements -------------- None Challenges ------------ None Game ------ Seed AlertFocalInjector Manual? 0 Play Time 02:51:19 Cumulative 354.6 hours Start 2023.12.12 @ 10:18:03 End 2023.12.12 @ 14:02:00 Sessions 1 Manual Loads 0 Difficulty Rogue Special Mode None Game No. 202 Rogue 202 Adventurer 0 Explorer 0 Win Type - Total 12 Types 7/1/0/2/0/1/1/0/0 Lore% 80 Gallery% 83 Achievement% 79 Wizard Run 0 Options --------- ASCII 0 Keyboard 1 Movement Numpad Keybinds 0 Fullscreen 2 Font 18/SmallcapsGlow Map View 76x50 Tactical HUD 1 Map Filters NONE Filters NONE Steam 1 RUN: cbfd961a-7b53-4d30-ad60-7d3ca65ce164